fUST/lending_fUST_20251012
["ID","MTS","AMOUNT","RATE_DAILY","PERIOD"]
[390969306,1760240055522,-1761.81,0.00021807,10]
[390969307,1760240055549,-779.9,0.00021807,10]
[390969308,1760240055637,-688.27,0.00021807,10]
[390969309,1760240065688,1223.48,0.00021807,10]
[390969310,1760240071537,-300.0,0.00021816,2]
[390969311,1760240076352,5000.0,0.00021816,2]
[390969312,1760240077171,1019.56,0.00021807,10]
[390969313,1760240083863,202.61,0.00021807,3]
[390969314,1760240087497,849.64,0.00021807,10]
[390969315,1760240094554,607.83,0.00021807,3]
[390969316,1760240097831,708.03,0.00021807,10]
[390969317,1760240098998,1012.34,0.00021816,2]
[390969318,1760240099021,1803.77982241,0.00021816,2]
[390969319,1760240102037,300.0,0.00021816,2]
[390969320,1760240102374,155.04,0.00019083,2]
[390969321,1760240103131,7741.19017759,0.000164,2]
[390969322,1760240103152,2908.80982241,0.000164,2]
[390969323,1760240103317,310.07,0.00019992,2]
[390969324,1760240103767,465.11,0.000209,2]
[390969325,1760240109384,590.02,0.00021807,10]
[390969326,1760240120931,491.69,0.00021807,10]
[390969327,1760240131928,409.74,0.00021807,10]
[390969328,1760240143382,341.45,0.00021807,10]
[390969329,1760240154708,284.54,0.00021807,10]
[390969330,1760240165622,184.63647817,0.00021717,2]
[390969331,1760240166141,237.12,0.00021807,10]
[390969332,1760240176708,197.6,0.00021807,10]
[390969333,1760240183653,150.0,0.00018999,2]
[390969334,1760240184073,297.85,0.00019904,2]
[390969335,1760240184481,446.77,0.00020809,2]
[390969336,1760240184992,84.58369942,0.00021714,2]
[390969337,1760240185016,511.11630058,0.00021714,2]
[390969338,1760240186077,-1200.0,0.00021816,2]
[390969339,1760240188054,164.66,0.00021807,10]
[390969340,1760240198985,823.35,0.00021807,10]
[390969341,1760240222893,300.0,0.00021816,2]
[390969342,1760240245952,1200.0,0.00021816,2]
[390969343,1760240268093,150.0,0.00019031,2]
[390969344,1760240268602,259.91,0.00019937,2]
[390969345,1760240268956,389.87,0.00020843,2]
[390969346,1760240269362,519.83,0.0002175,2]
[390969347,1760240279798,328.94,0.00015494,5]
[390969348,1760240280070,328.94,0.00015494,5]
[390969349,1760240282232,300.0,0.00021816,2]
[390969350,1760240320196,344.05342886,0.0002162,6]
[390969351,1760240343068,300.0,0.00021816,2]
[390969352,1760240347557,150.0,0.00018997,2]
[390969353,1760240347975,226.32,0.00019901,2]
[390969354,1760240348434,339.48,0.00020806,2]
[390969355,1760240348844,452.64,0.00021711,2]
[390969356,1760240401925,405.22,0.00021807,3]
[390969357,1760240402134,300.0,0.00021816,2]
[390969358,1760240404185,-160.0,0.00021817,2]
[390969359,1760240407604,1200.0,0.00021816,2]
[390969360,1760240431866,150.0,0.00019027,2]
[390969361,1760240432303,196.58,0.00019933,2]
[390969362,1760240432774,294.87,0.00020839,2]
[390969363,1760240433208,393.16,0.00021745,2]
[390969364,1760240462364,300.0,0.00021816,2]
[390969365,1760240470116,3879.0,0.00025,120]
[390969366,1760240510827,150.0,0.00019009,2]
[390969367,1760240511244,170.24,0.00019914,2]
[390969368,1760240511653,255.37,0.00020819,2]
[390969369,1760240512058,340.49,0.00021724,2]
[390969370,1760240524963,1270.743291,0.00020949,2]
[390969371,1760240588858,150.0,0.00018985,2]
[390969372,1760240589291,150.0,0.00019889,2]
[390969373,1760240589712,220.39,0.00020794,2]
[390969374,1760240590094,-1200.0,0.00021816,2]
[390969375,1760240590124,-296.84314714,0.00021816,2]
[390969376,1760240590152,-300.0,0.00021816,2]
[390969377,1760240590292,293.85,0.00021698,2]
[390969378,1760240642482,300.0,0.00021816,2]
[390969380,1760240668382,150.0,0.00019039,2]
[390969381,1760240668830,150.0,0.00019945,2]
[390969382,1760240669269,189.42,0.00020852,2]
[390969383,1760240669835,252.56,0.00021759,2]
[390969384,1760240746833,150.0,0.00019035,2]
[390969385,1760240747318,150.0,0.00019942,2]
[390969386,1760240747707,166.82,0.00020848,2]
[390969387,1760240748107,222.42,0.00021755,2]
[390969388,1760240806170,-1200.0,0.00021802,2]
[390969389,1760240806199,-229.0,0.00021802,2]
[390969390,1760240806228,-410.58202228,0.00021802,2]
[390969391,1760240806255,-325.48793828,0.00021802,2]
[390969392,1760240806283,-208.73655444,0.00021802,2]
[390969393,1760240819151,-7866.37409342,0.00021803,2]
[390969394,1760240822908,150.0,0.00019003,2]
[390969395,1760240823213,150.0,0.00019908,2]
[390969396,1760240823631,150.0,0.00020813,2]
[390969397,1760240824064,187.7,0.00021718,2]
[390969398,1760240882390,166.56543061,0.00021631,5]
[390969399,1760240884169,176.72792493,0.00021631,5]
[390969401,1760240898902,150.0,0.0001906,2]
[390969402,1760240899818,150.0,0.00019967,2]
[390969403,1760240900259,150.0,0.00020875,2]
[390969404,1760240900678,155.24,0.00021783,2]
[390969408,1760240973216,150.0,0.00019037,2]
[390969409,1760240973633,150.0,0.00019944,2]
[390969410,1760240974085,150.0,0.00020851,2]
[390969411,1760240974503,150.0,0.00021757,2]
[390969412,1760241001500,200.0,0.00030275,60]
[390969436,1760241031823,-69338.74167118,0.00021803,2]
[390969438,1760241031833,-1024.2866163,0.00021803,2]
[390969440,1760241031842,-13214.42195994,0.00021817,2]
[390969450,1760241031931,-400.0,0.00021817,2]
[390969452,1760241031942,-329.70230416,0.00021817,2]
[390969498,1760241037652,-855.13043059,0.00021817,2]
[390969499,1760241037759,-179527.95256519,0.00021817,2]
[390969500,1760241037769,-1984.90930451,0.00021817,2]
[390969501,1760241037779,-327.69056049,0.00021817,2]
[390969502,1760241037788,-157.728,0.00021916,2]
[390969503,1760241037797,-50000.0,0.00021917,2]
[390969504,1760241037807,-500.70168681,0.00021917,2]
[390969506,1760241037816,-500.83493264,0.00021917,2]
[390969508,1760241037826,-500.0,0.00021917,2]
[390969510,1760241037835,-500.0,0.00021917,2]
[390969512,1760241037844,-500.0,0.00021917,2]
[390969513,1760241037853,-500.0,0.00021917,2]
[390969514,1760241037862,-500.0,0.00021917,2]
[390969515,1760241037872,-500.0,0.00021917,2]
[390969516,1760241037881,-200.0,0.00021917,2]
[390969517,1760241037890,-500.0,0.00021917,2]
[390969518,1760241037899,-500.0,0.00021917,2]
[390969519,1760241037909,-500.0,0.00021917,2]
[390969520,1760241037918,-500.0,0.00021917,2]
[390969521,1760241037927,-501.11714907,0.00021917,2]
[390969522,1760241037937,-500.0,0.00021917,2]
[390969523,1760241037946,-500.0,0.00021917,2]
[390969524,1760241037955,-418.92,0.00021917,2]
[390969525,1760241037964,-500.85174744,0.00021917,2]
[390969526,1760241037974,-500.0,0.00021917,2]
[390969527,1760241038129,-500.0,0.00021917,2]
[390969528,1760241038143,-500.0,0.00021917,2]
[390969529,1760241038153,-500.0,0.00021917,2]
[390969530,1760241038163,-500.82690747,0.00021917,2]
[390969531,1760241038172,-500.0,0.00021917,2]
[390969532,1760241038183,-500.0,0.00021917,2]
[390969533,1760241038193,-500.0,0.00021917,2]
[390969534,1760241038202,-500.64432442,0.00021917,2]
[390969535,1760241038212,-500.0,0.00021917,2]
[390969536,1760241038223,-500.0,0.00021917,2]
[390969537,1760241038233,-500.0,0.00021917,2]
[390969538,1760241038243,-500.0,0.00021917,2]
[390969539,1760241038253,-500.0,0.00021917,2]
[390969540,1760241038264,-500.0,0.00021917,2]
[390969541,1760241038274,-500.0,0.00021917,2]
[390969542,1760241038283,-500.0,0.00021917,2]
[390969543,1760241038293,-500.0,0.00021917,2]
[390969544,1760241038303,-513.5251629,0.00021917,2]
[390969545,1760241038312,-500.0,0.00021917,2]
[390969546,1760241038322,-500.0,0.00021917,2]
[390969547,1760241038331,-507.49,0.00021917,2]
[390969548,1760241038340,-500.0,0.00021917,2]
[390969549,1760241038349,-504.87564327,0.00021917,2]
[390969550,1760241038359,-500.0,0.00021917,2]
[390969551,1760241038368,-500.0,0.00021917,2]
[390969552,1760241038377,-500.0,0.00021917,2]
[390969553,1760241038387,-500.0,0.00021917,2]
[390969554,1760241038396,-500.0,0.00021917,2]
[390969555,1760241038405,-498.54694733,0.00021917,2]
[390969556,1760241038414,-500.0,0.00021917,2]
[390969557,1760241038424,-500.0,0.00021917,2]
[390969558,1760241038433,-500.0,0.00021917,2]
[390969559,1760241038443,-500.0,0.00021917,2]
[390969560,1760241038451,-500.0,0.00021917,2]
[390969561,1760241038461,-500.0,0.00021917,2]
[390969562,1760241038470,-500.0,0.00021917,2]
[390969563,1760241038479,-500.0,0.00021917,2]
[390969564,1760241038490,-500.0,0.00021917,2]
[390969565,1760241038499,-500.0,0.00021917,2]
[390969566,1760241038509,-500.0,0.00021917,2]
[390969567,1760241038519,-500.0,0.00021917,2]
[390969568,1760241038528,-500.0,0.00021917,2]
[390969569,1760241038538,-500.0,0.00021917,2]
[390969570,1760241038548,-500.0,0.00021917,2]
[390969571,1760241038557,-372.75118348,0.00021917,2]
[390969572,1760241038567,-500.0,0.00021917,2]
[390969573,1760241038576,-244.17908274,0.00021917,2]
[390969574,1760241038586,-500.0,0.00021917,2]
[390969575,1760241038596,-500.0,0.00021917,2]
[390969576,1760241038606,-500.0,0.00021917,2]
[390969577,1760241038616,-500.0,0.00021917,2]
[390969578,1760241038627,-500.0,0.00021917,2]
[390969579,1760241038638,-500.0,0.00021917,2]
[390969580,1760241038649,-500.0,0.00021917,2]
[390969581,1760241038658,-500.0,0.00021917,2]
[390969582,1760241038668,-500.0,0.00021917,2]
[390969583,1760241038678,-502.6,0.00021917,2]
[390969584,1760241038687,-500.0,0.00021917,2]
[390969585,1760241038696,-500.0,0.00021917,2]
[390969586,1760241038706,-500.0,0.00021917,2]
[390969587,1760241038715,-500.0,0.00021917,2]
[390969588,1760241038725,-500.0,0.00021917,2]
[390969589,1760241038736,-500.0,0.00021917,2]
[390969590,1760241038745,-500.0,0.00021917,2]
[390969591,1760241038755,-500.0,0.00021917,2]
[390969592,1760241038765,-500.0,0.00021917,2]
[390969593,1760241038775,-500.0,0.00021917,2]
[390969594,1760241038784,-500.0,0.00021917,2]
[390969595,1760241038794,-500.0,0.00021917,2]
[390969596,1760241038804,-500.0,0.00021917,2]
[390969597,1760241038813,-500.0,0.00021917,2]
[390969598,1760241038823,-500.0,0.00021917,2]
[390969599,1760241038833,-500.0,0.00021917,2]
[390969600,1760241038843,-500.0,0.00021917,2]
[390969601,1760241038854,-500.0,0.00021917,2]
[390969602,1760241038864,-500.0,0.00021917,2]
[390969603,1760241038874,-500.0,0.00021917,2]
[390969604,1760241038883,-500.0,0.00021917,2]
[390969605,1760241038893,-500.0,0.00021917,2]
[390969606,1760241038903,-500.0,0.00021917,2]
[390969607,1760241038912,-500.0,0.00021917,2]
[390969608,1760241038923,-500.0,0.00021917,2]
[390969609,1760241038932,-500.0,0.00021917,2]
[390969610,1760241038942,-301.05869425,0.00021917,2]
[390969611,1760241038951,-500.0,0.00021917,2]
[390969612,1760241038961,-500.0,0.00021917,2]
[390969613,1760241038971,-500.0,0.00021917,2]
[390969614,1760241038980,-509.35972574,0.00021917,2]
[390969615,1760241038990,-500.0,0.00021917,2]
[390969616,1760241039000,-500.0,0.00021917,2]
[390969617,1760241039010,-501.24362083,0.00021917,2]
[390969618,1760241039020,-500.0,0.00021917,2]
[390969619,1760241039031,-500.0,0.00021917,2]
[390969620,1760241039042,-469.05979153,0.00021917,2]
[390969621,1760241039052,-500.0,0.00021917,2]
[390969622,1760241039062,-500.0,0.00021917,2]
[390969623,1760241039072,-500.0,0.00021917,2]
[390969624,1760241039081,-500.0,0.00021917,2]
[390969625,1760241039091,-500.0,0.00021917,2]
[390969626,1760241039100,-500.0,0.00021917,2]
[390969627,1760241039110,-500.0,0.00021917,2]
[390969628,1760241039119,-500.0,0.00021917,2]
[390969629,1760241039129,-500.0,0.00021917,2]
[390969630,1760241039140,-500.0,0.00021917,2]
[390969631,1760241039150,-500.0,0.00021917,2]
[390969632,1760241039160,-500.0,0.00021917,2]
[390969633,1760241039169,-500.0,0.00021917,2]
[390969634,1760241039179,-500.0,0.00021917,2]
[390969636,1760241039189,-500.0,0.00021917,2]
[390969638,1760241039199,-501.26556005,0.00021917,2]
[390969639,1760241039208,-500.0,0.00021917,2]
[390969640,1760241039220,-500.0,0.00021917,2]
[390969641,1760241039230,-500.0,0.00021917,2]
[390969642,1760241039242,-500.0,0.00021917,2]
[390969643,1760241039252,-500.0,0.00021917,2]
[390969644,1760241039262,-500.0,0.00021917,2]
[390969645,1760241039271,-500.0,0.00021917,2]
[390969646,1760241039281,-500.0,0.00021917,2]
[390969647,1760241039290,-500.0,0.00021917,2]
[390969649,1760241039300,-500.0,0.00021917,2]
[390969650,1760241039309,-500.0,0.00021917,2]
[390969651,1760241039319,-500.0,0.00021917,2]
[390969652,1760241039330,-500.0,0.00021917,2]
[390969653,1760241039349,-500.0,0.00021917,2]
[390969654,1760241039359,-500.0,0.00021917,2]
[390969655,1760241039370,-500.0,0.00021917,2]
[390969656,1760241039380,-500.0,0.00021917,2]
[390969657,1760241039390,-500.0,0.00021917,2]
[390969658,1760241039399,-500.0,0.00021917,2]
[390969659,1760241039408,-500.0,0.00021917,2]
[390969660,1760241039418,-500.0,0.00021917,2]
[390969661,1760241039427,-500.0,0.00021917,2]
[390969662,1760241039436,-500.0,0.00021917,2]
[390969663,1760241039446,-466.9,0.00021917,2]
[390969664,1760241039455,-500.0,0.00021917,2]
[390969665,1760241039463,-500.0,0.00021917,2]
[390969666,1760241039472,-500.0,0.00021917,2]
[390969667,1760241039480,-212.97,0.00021917,2]
[390969668,1760241039490,-500.0,0.00021917,2]
[390969669,1760241039499,-500.0,0.00021917,2]
[390969670,1760241039508,-500.0,0.00021917,2]
[390969671,1760241039517,-500.0,0.00021917,2]
[390969672,1760241039525,-500.0,0.00021917,2]
[390969673,1760241039535,-500.91949722,0.00021917,2]
[390969674,1760241039544,-500.0,0.00021917,2]
[390969675,1760241039553,-500.0,0.00021917,2]
[390969676,1760241039563,-500.0,0.00021917,2]
[390969677,1760241039571,-500.0,0.00021917,2]
[390969678,1760241039581,-500.0,0.00021917,2]
[390969679,1760241039590,-500.0,0.00021917,2]
[390969680,1760241039599,-500.0,0.00021917,2]
[390969681,1760241039607,-500.0,0.00021917,2]
[390969682,1760241039617,-500.0,0.00021917,2]
[390969683,1760241039626,-500.0,0.00021917,2]
[390969684,1760241039635,-500.0,0.00021917,2]
[390969685,1760241039644,-500.0,0.00021917,2]
[390969686,1760241039653,-241.4,0.00021917,2]
[390969687,1760241039662,-564.14462845,0.00021917,2]
[390969688,1760241039671,-500.0,0.00021917,2]
[390969689,1760241039680,-500.0,0.00021917,2]
[390969690,1760241039689,-500.0,0.00021917,2]
[390969691,1760241039698,-500.0,0.00021917,2]
[390969692,1760241039707,-500.0,0.00021917,2]
[390969693,1760241039716,-500.0,0.00021917,2]
[390969695,1760241039726,-500.0,0.00021917,2]
[390969697,1760241039735,-500.0,0.00021917,2]
[390969698,1760241039744,-228.55,0.00021917,2]
[390969699,1760241039754,-500.0,0.00021917,2]
[390969700,1760241039763,-500.76097281,0.00021917,2]
[390969701,1760241039772,-500.0,0.00021917,2]
[390969702,1760241039781,-500.9963499,0.00021917,2]
[390969703,1760241039791,-500.0,0.00021917,2]
[390969704,1760241039800,-500.0,0.00021917,2]
[390969705,1760241039809,-500.0,0.00021917,2]
[390969706,1760241039818,-500.0,0.00021917,2]
[390969707,1760241039827,-484.51690759,0.00021917,2]
[390969709,1760241039837,-500.0,0.00021917,2]
[390969711,1760241039846,-818.52,0.00021917,2]
[390969713,1760241039855,-818.52,0.00021917,2]
[390969715,1760241039865,-500.0,0.00021917,2]
[390969717,1760241039874,-818.52,0.00021917,2]
[390969719,1760241039883,-818.52,0.00021917,2]
[390969721,1760241039893,-818.52,0.00021917,2]
[390969723,1760241039902,-818.52,0.00021917,2]
[390969725,1760241039911,-818.52,0.00021917,2]
[390969727,1760241039920,-818.52,0.00021917,2]
[390969729,1760241039930,-818.52,0.00021917,2]
[390969731,1760241039940,-818.52,0.00021917,2]
[390969733,1760241039949,-818.52,0.00021917,2]
[390969735,1760241039958,-818.52,0.00021917,2]
[390969737,1760241039967,-818.52,0.00021917,2]
[390969739,1760241039976,-818.52,0.00021917,2]
[390969741,1760241039986,-500.0,0.00021917,2]
[390969743,1760241039995,-818.52,0.00021917,2]
[390969745,1760241040004,-818.52,0.00021917,2]
[390969747,1760241040013,-818.52,0.00021917,2]
[390969749,1760241040022,-818.52,0.00021917,2]
[390969751,1760241040031,-818.52,0.00021917,2]
[390969753,1760241040040,-818.52,0.00021917,2]
[390969755,1760241040050,-500.0,0.00021917,2]
[390969757,1760241040060,-818.52,0.00021917,2]
[390969759,1760241040069,-818.52,0.00021917,2]
[390969761,1760241040079,-818.52,0.00021917,2]
[390969763,1760241040089,-818.52,0.00021917,2]
[390969765,1760241040098,-500.0,0.00021917,2]
[390969767,1760241040107,-500.0,0.00021917,2]
[390969769,1760241040116,-501.30962912,0.00021917,2]
[390969771,1760241040125,-500.0,0.00021917,2]
[390969773,1760241040138,-500.0,0.00021917,2]
[390969775,1760241040152,-481.94428307,0.00021917,2]
[390969777,1760241040161,-500.0,0.00021917,2]
[390969779,1760241040170,-500.0,0.00021917,2]
[390969781,1760241040180,-500.0,0.00021917,2]
[390969783,1760241040189,-500.0,0.00021917,2]
[390969785,1760241040198,-501.60154929,0.00021917,2]
[390969787,1760241040206,-500.54470514,0.00021917,2]
[390969789,1760241040217,-500.0,0.00021917,2]
[390969791,1760241040226,-500.0,0.00021917,2]
[390969793,1760241040236,-500.0,0.00021917,2]
[390969795,1760241040245,-500.0,0.00021917,2]
[390969797,1760241040255,-500.0,0.00021917,2]
[390969799,1760241040264,-500.0,0.00021917,2]
[390969801,1760241040273,-500.0,0.00021917,2]
[390969803,1760241040282,-504.67849272,0.00021917,2]
[390969805,1760241040291,-500.0,0.00021917,2]
[390969807,1760241040300,-500.0,0.00021917,2]
[390969809,1760241040309,-501.36904118,0.00021917,2]
[390969811,1760241040318,-500.0,0.00021917,2]
[390969813,1760241040327,-500.0,0.00021917,2]
[390969815,1760241040336,-500.0,0.00021917,2]
[390969817,1760241040345,-500.0,0.00021917,2]
[390969819,1760241040354,-304.73841908,0.00021917,2]
[390969821,1760241040363,-500.0,0.00021917,2]
[390969823,1760241040372,-500.0,0.00021917,2]
[390969825,1760241040381,-501.5597374,0.00021917,2]
[390969827,1760241040390,-500.0,0.00021917,2]
[390969829,1760241040399,-393.73,0.00021917,2]
[390969831,1760241040408,-500.0,0.00021917,2]
[390969833,1760241040417,-503.67,0.00021917,2]
[390969835,1760241040426,-500.0,0.00021917,2]
[390969837,1760241040434,-599.0,0.00021917,2]
[390969839,1760241040443,-500.0,0.00021917,2]
[390969841,1760241040453,-500.0,0.00021917,2]
[390969843,1760241040462,-635.50190938,0.00021917,2]
[390969845,1760241040471,-359.68,0.00021917,2]
[390969847,1760241040479,-500.0,0.00021917,2]
[390969849,1760241040489,-500.0,0.00021917,2]
[390969851,1760241040498,-571.25389579,0.00021917,2]
[390969853,1760241040507,-502.79410988,0.00021917,2]
[390969855,1760241040516,-500.0,0.00021917,2]
[390969857,1760241040525,-500.0,0.00021917,2]
[390969859,1760241040534,-500.0,0.00021917,2]
[390969861,1760241040543,-500.0,0.00021917,2]
[390969863,1760241040552,-500.0,0.00021917,2]
[390969864,1760241040561,-648.62,0.00021917,2]
[390969865,1760241040570,-500.0,0.00021917,2]
[390969866,1760241040580,-500.0,0.00021917,2]
[390969867,1760241040588,-500.0,0.00021917,2]
[390969869,1760241040597,-549.59815093,0.00021917,2]
[390969870,1760241040606,-481.56177474,0.00021917,2]
[390969871,1760241040616,-514.73,0.00021917,2]
[390969872,1760241040625,-500.0,0.00021917,2]
[390969873,1760241040634,-514.73,0.00021917,2]
[390969874,1760241040643,-514.73,0.00021917,2]
[390969875,1760241040651,-514.73,0.00021917,2]
[390969876,1760241040661,-514.73,0.00021917,2]
[390969877,1760241040670,-514.73,0.00021917,2]
[390969878,1760241040679,-514.73,0.00021917,2]
[390969879,1760241040688,-514.73,0.00021917,2]
[390969880,1760241040697,-514.73,0.00021917,2]
[390969881,1760241040707,-514.73,0.00021917,2]
[390969882,1760241040715,-514.73,0.00021917,2]
[390969883,1760241040724,-514.73,0.00021917,2]
[390969884,1760241040733,-514.73,0.00021917,2]
[390969885,1760241040742,-514.73,0.00021917,2]
[390969886,1760241040751,-514.73,0.00021917,2]
[390969887,1760241040760,-514.73,0.00021917,2]
[390969888,1760241040769,-514.73,0.00021917,2]
[390969889,1760241040778,-514.73,0.00021917,2]
[390969890,1760241040787,-514.73,0.00021917,2]
[390969891,1760241040796,-514.73,0.00021917,2]
[390969892,1760241040805,-514.73,0.00021917,2]
[390969893,1760241040814,-514.73,0.00021917,2]
[390969894,1760241040823,-514.73,0.00021917,2]
[390969895,1760241040832,-514.73,0.00021917,2]
[390969896,1760241040841,-500.0,0.00021917,2]
[390969897,1760241040851,-500.0,0.00021917,2]
[390969898,1760241040860,-500.0,0.00021917,2]
[390969899,1760241040869,-504.61468669,0.00021917,2]
[390969900,1760241040878,-500.0,0.00021917,2]
[390969901,1760241040887,-500.0,0.00021917,2]
[390969902,1760241040896,-623.83,0.00021917,2]
[390969903,1760241040905,-504.6656488,0.00021917,2]
[390969904,1760241040927,-500.72667766,0.00021917,2]
[390969905,1760241040936,-502.03632017,0.00021917,2]
[390969906,1760241040945,-500.96489083,0.00021917,2]
[390969907,1760241040955,-500.0,0.00021917,2]
[390969908,1760241040964,-500.40414991,0.00021917,2]
[390969909,1760241040973,-501.89162087,0.00021917,2]
[390969910,1760241040982,-501.34604265,0.00021917,2]
[390969911,1760241040991,-500.0,0.00021917,2]
[390969912,1760241041000,-377.52,0.00021917,2]
[390969913,1760241041009,-500.0,0.00021917,2]
[390969914,1760241041018,-500.0,0.00021917,2]
[390969915,1760241041028,-504.861263,0.00021917,2]
[390969916,1760241041037,-464.68,0.00021917,2]
[390969917,1760241041046,-500.0,0.00021917,2]
[390969918,1760241041055,-500.0,0.00021917,2]
[390969919,1760241041065,-502.36162266,0.00021917,2]
[390969920,1760241041074,-503.29222905,0.00021917,2]
[390969921,1760241041083,-500.0,0.00021917,2]
[390969922,1760241041092,-501.7301223,0.00021917,2]
[390969923,1760241041101,-500.0,0.00021917,2]
[390969924,1760241041111,-500.0,0.00021917,2]
[390969925,1760241041120,-500.0,0.00021917,2]
[390969926,1760241041129,-500.0,0.00021917,2]
[390969927,1760241041139,-500.0,0.00021917,2]
[390969928,1760241041150,-500.0,0.00021917,2]
[390969929,1760241041159,-500.0,0.00021917,2]
[390969930,1760241041168,-432.36,0.00021917,2]
[390969931,1760241041178,-507.79225295,0.00021917,2]
[390969932,1760241041189,-500.0,0.00021917,2]
[390969933,1760241041198,-500.0,0.00021917,2]
[390969934,1760241041207,-500.0,0.00021917,2]
[390969935,1760241041217,-500.0,0.00021917,2]
[390969936,1760241041228,-500.0,0.00021917,2]
[390969937,1760241041249,-502.18534506,0.00021917,2]
[390969938,1760241041264,-500.0,0.00021917,2]
[390969939,1760241041273,-500.0,0.00021917,2]
[390969940,1760241041283,-500.0,0.00021917,2]
[390969941,1760241041292,-500.0,0.00021917,2]
[390969942,1760241041302,-500.0,0.00021917,2]
[390969943,1760241041312,-500.0,0.00021917,2]
[390969944,1760241041321,-500.0,0.00021917,2]
[390969945,1760241041331,-500.0,0.00021917,2]
[390969946,1760241041340,-500.0,0.00021917,2]
[390969947,1760241041349,-500.0,0.00021917,2]
[390969948,1760241041358,-500.0,0.00021917,2]
[390969949,1760241041367,-500.0,0.00021917,2]
[390969950,1760241041377,-500.0,0.00021917,2]
[390969951,1760241041386,-500.0,0.00021917,2]
[390969952,1760241041400,-500.0,0.00021917,2]
[390969953,1760241041413,-500.0,0.00021917,2]
[390969954,1760241041424,-453.75,0.00021917,2]
[390969955,1760241041434,-500.0,0.00021917,2]
[390969956,1760241041552,-500.0,0.00021917,2]
[390969957,1760241041562,-500.0,0.00021917,2]
[390969958,1760241041572,-500.0,0.00021917,2]
[390969959,1760241041581,-500.0,0.00021917,2]
[390969960,1760241041590,-500.0,0.00021917,2]
[390969961,1760241041599,-500.0,0.00021917,2]
[390969962,1760241041609,-500.0,0.00021917,2]
[390969963,1760241041618,-500.0,0.00021917,2]
[390969964,1760241041628,-500.0,0.00021917,2]
[390969965,1760241041637,-500.0,0.00021917,2]
[390969966,1760241041646,-500.0,0.00021917,2]
[390969967,1760241041656,-162.25,0.00021917,2]
[390969968,1760241041667,-501.95155616,0.00021917,2]
[390969969,1760241041677,-500.0,0.00021917,2]
[390969970,1760241041686,-500.0,0.00021917,2]
[390969971,1760241041695,-500.0,0.00021917,2]
[390969972,1760241041704,-500.0,0.00021917,2]
[390969973,1760241041713,-500.0,0.00021917,2]
[390969974,1760241041723,-1000.0,0.00021917,2]
[390969975,1760241041733,-500.0,0.00021917,2]
[390969976,1760241041742,-500.63270792,0.00021917,2]
[390969977,1760241041751,-500.0,0.00021917,2]
[390969978,1760241041760,-500.0,0.00021917,2]